[Event "Titled Tuesday Blitz March 29 Early 2022"]
[White "Salinas Herrera, Pablo"]
[Black "Steinberg, Nitzan"]
[WhiteFideId "3407128"]
[BlackFideId "2801795"]
[WhiteElo "2541"]
[BlackElo "2440"]
[Result "1-0"]
[Round "09"]
[TimeControl "180+1"]
[Date "2022.03.29"]
[WhiteClock "0:00:11"]
[BlackClock "0:00:03"]

1. d4 {[%clk 0:03:00]}  d5 {[%clk 0:03:00]} 2. Nf3 {[%clk 0:03:00]}  Nf6 {[%clk 0:03:00]} 3. Bf4 {[%clk 0:02:59]}  e6 {[%clk 0:03:00]} 4. e3 {[%clk 0:02:58]}  Bd6 {[%clk 0:03:01]} 5. Nbd2 {[%clk 0:02:57]}  O-O {[%clk 0:03:01]} 6. Bd3 {[%clk 0:02:55]}  c5 {[%clk 0:03:01]} 7. c3 {[%clk 0:02:56]}  Qc7 {[%clk 0:03:01]} 8. Bxd6 {[%clk 0:02:56]}  Qxd6 {[%clk 0:03:02]} 9. Ne5 {[%clk 0:02:56]}  b6 {[%clk 0:02:57]} 10. f4 {[%clk 0:02:54]}  Ba6 {[%clk 0:02:57]} 11. Bc2 {[%clk 0:02:54]}  Nc6 {[%clk 0:02:48]} 12. g4 {[%clk 0:02:53]}  Nd7 {[%clk 0:02:33]} 13. g5 {[%clk 0:02:52]}  cxd4 {[%clk 0:02:25]} 14. exd4 {[%clk 0:02:52]}  Ncxe5 {[%clk 0:02:22]} 15. fxe5 {[%clk 0:02:46]}  Nxe5 {[%clk 0:02:22]} 16. dxe5 {[%clk 0:02:41]}  Qxe5+ {[%clk 0:02:22]} 17. Kf2 {[%clk 0:02:42]}  Qxg5 {[%clk 0:02:19]} 18. Nf3 {[%clk 0:02:40]}  Qh5 {[%clk 0:01:46]} 19. h4 {[%clk 0:02:33]}  h6 {[%clk 0:01:23]} 20. Qd4 {[%clk 0:02:22]}  Rac8 {[%clk 0:01:21]} 21. Rag1 {[%clk 0:02:18]}  e5 {[%clk 0:01:08]} 22. Qxe5 {[%clk 0:02:09]}  Qxe5 {[%clk 0:01:08]} 23. Nxe5 {[%clk 0:02:09]}  d4 {[%clk 0:01:05]} 24. Rh3 {[%clk 0:01:38]}  Rfe8 {[%clk 0:00:59]} 25. Re1 {[%clk 0:01:35]}  Rc5 {[%clk 0:00:50]} 26. Nd3 {[%clk 0:00:53]}  Rf5+ {[%clk 0:00:37]} 27. Rf3 {[%clk 0:00:54]}  Rxe1 {[%clk 0:00:30]} 28. Nxe1 {[%clk 0:00:50]}  Ra5 {[%clk 0:00:20]} 29. Bb3 {[%clk 0:00:45]}  Re5 {[%clk 0:00:16]} 30. Bxf7+ {[%clk 0:00:43]}  Kh7 {[%clk 0:00:16]} 31. Nd3 {[%clk 0:00:38]}  Re7 {[%clk 0:00:11]} 32. Bd5 {[%clk 0:00:32]}  dxc3 {[%clk 0:00:11]} 33. bxc3 {[%clk 0:00:32]}  g6 {[%clk 0:00:10]} 34. c4 {[%clk 0:00:31]}  Kg7 {[%clk 0:00:11]} 35. Nf4 {[%clk 0:00:30]}  Bc8 {[%clk 0:00:11]} 36. Re3 {[%clk 0:00:29]}  Rxe3 {[%clk 0:00:08]} 37. Kxe3 {[%clk 0:00:30]}  Kf6 {[%clk 0:00:09]} 38. Be4 {[%clk 0:00:29]}  g5 {[%clk 0:00:09]} 39. hxg5+ {[%clk 0:00:30]}  hxg5 {[%clk 0:00:10]} 40. Nd5+ {[%clk 0:00:30]}  Ke5 {[%clk 0:00:10]} 41. Nc3 {[%clk 0:00:28]}  Ba6 {[%clk 0:00:06]} 42. Nb5 {[%clk 0:00:23]}  g4 {[%clk 0:00:05]} 43. a3 {[%clk 0:00:19]}  g3 {[%clk 0:00:05]} 44. Bg2 {[%clk 0:00:19]}  Bxb5 {[%clk 0:00:01]} 45. cxb5 {[%clk 0:00:19]}  Kd6 {[%clk 0:00:01]} 46. Kd4 {[%clk 0:00:19]}  Ke6 {[%clk 0:00:01]} 47. Ke3 {[%clk 0:00:12]}  Kd6 {[%clk 0:00:02]} 48. Kd4 {[%clk 0:00:06]}  Ke6 {[%clk 0:00:02]} 49. a4 {[%clk 0:00:07]}  Kd6 {[%clk 0:00:02]} 50. Bf3 {[%clk 0:00:07]}  Ke6 {[%clk 0:00:03]} 51. Ke3 {[%clk 0:00:08]}  Ke5 {[%clk 0:00:03]} 52. Bb7 {[%clk 0:00:06]}  Kd6 {[%clk 0:00:02]} 53. Kf3 {[%clk 0:00:05]}  Kc5 {[%clk 0:00:02]} 54. Ba6 {[%clk 0:00:05]}  Kb4 {[%clk 0:00:02]} 55. Kxg3 {[%clk 0:00:06]}  Kxa4 {[%clk 0:00:03]} 56. Kf4 {[%clk 0:00:07]}  Kb4 {[%clk 0:00:03]} 57. Ke5 {[%clk 0:00:07]}  Kc5 {[%clk 0:00:04]} 58. Ke6 {[%clk 0:00:08]}  Kc4 {[%clk 0:00:02]} 59. Kd6 {[%clk 0:00:09]}  Kb4 {[%clk 0:00:02]} 60. Kc7 {[%clk 0:00:10]}  Kc5 {[%clk 0:00:02]} 61. Kb7 {[%clk 0:00:11]}  Kd6 {[%clk 0:00:03]} 62. Kxa7 {[%clk 0:00:11]}  Kc7 {[%clk 0:00:03]} 63. Bb7 {[%clk 0:00:11]} 1-0


[Site "https://www.chess.com"]

[Event "Titled Tuesday Blitz March 29 Early 2022"]
[White "Sanchez Alvares, Kelvin Antonio"]
[Black "Muradov, Soltan"]
[WhiteFideId "3906680"]
[BlackFideId "14002108"]
[WhiteElo "2538"]
[BlackElo "2357"]
[Result "1-0"]
[Round "09"]
[TimeControl "180+1"]
[Date "2022.03.30"]
[WhiteClock "0:01:03"]
[BlackClock "0:00:05"]

1. e4 {[%clk 0:03:00]}  e5 {[%clk 0:02:57]} 2. Nf3 {[%clk 0:03:00]}  Nf6 {[%clk 0:02:57]} 3. Nxe5 {[%clk 0:02:59]}  d6 {[%clk 0:02:57]} 4. Nxf7 {[%clk 0:02:59]}  Kxf7 {[%clk 0:02:58]} 5. d4 {[%clk 0:02:59]}  g6 {[%clk 0:02:54]} 6. Nc3 {[%clk 0:02:58]}  Be6 {[%clk 0:02:47]} 7. f4 {[%clk 0:02:57]}  Bg7 {[%clk 0:02:47]} 8. Bd3 {[%clk 0:02:55]}  Re8 {[%clk 0:02:44]} 9. e5 {[%clk 0:02:45]}  dxe5 {[%clk 0:01:18]} 10. fxe5 {[%clk 0:02:43]}  Nd5 {[%clk 0:01:18]} 11. O-O+ {[%clk 0:02:35]}  Kg8 {[%clk 0:01:18]} 12. Ne4 {[%clk 0:02:35]}  Nb6 {[%clk 0:00:57]} 13. c3 {[%clk 0:02:34]}  N8d7 {[%clk 0:00:50]} 14. Ng5 {[%clk 0:02:30]}  Qe7 {[%clk 0:00:27]} 15. Nxh7 {[%clk 0:02:15]}  Kxh7 {[%clk 0:00:18]} 16. Qh5+ {[%clk 0:02:14]}  Kg8 {[%clk 0:00:18]} 17. Qxg6 {[%clk 0:01:48]}  Nf8 {[%clk 0:00:18]} 18. Rxf8+ {[%clk 0:01:38]}  Kxf8 {[%clk 0:00:19]} 19. Bg5 {[%clk 0:01:29]}  Qf7 {[%clk 0:00:15]} 20. Rf1 {[%clk 0:01:28]}  Qxf1+ {[%clk 0:00:13]} 21. Kxf1 {[%clk 0:01:28]}  Nd5 {[%clk 0:00:11]} 22. Bf6 {[%clk 0:01:18]}  Re7 {[%clk 0:00:06]} 23. Bxe7+ {[%clk 0:01:03]}  Nxe7 {[%clk 0:00:05]} 24. Qxe6 {[%clk 0:01:03]} 1-0


[Site "https://www.chess.com"]

[Event "Titled Tuesday Blitz March 29 Early 2022"]
[White "Seo, Jung Min"]
[Black "Shohat, Yotam"]
[WhiteFideId "1734687"]
[BlackFideId "2813955"]
[WhiteElo "2401"]
[BlackElo "2119"]
[Result "1-0"]
[Round "09"]
[TimeControl "180+1"]
[Date "2022.03.29"]
[WhiteClock "0:01:39"]
[BlackClock "0:00:01"]

1. d4 {[%clk 0:03:00]}  Nf6 {[%clk 0:02:59]} 2. c4 {[%clk 0:03:01]}  g6 {[%clk 0:02:51]} 3. Nc3 {[%clk 0:03:00]}  Bg7 {[%clk 0:02:51]} 4. e4 {[%clk 0:03:00]}  O-O {[%clk 0:02:52]} 5. Be2 {[%clk 0:03:00]}  d6 {[%clk 0:02:52]} 6. Nf3 {[%clk 0:03:00]}  e5 {[%clk 0:02:52]} 7. Be3 {[%clk 0:03:00]}  Ng4 {[%clk 0:02:38]} 8. Bg5 {[%clk 0:03:00]}  f6 {[%clk 0:02:38]} 9. Bh4 {[%clk 0:02:56]}  h5 {[%clk 0:02:29]} 10. h3 {[%clk 0:02:48]}  Nh6 {[%clk 0:02:20]} 11. Bg3 {[%clk 0:02:48]}  Nc6 {[%clk 0:02:11]} 12. d5 {[%clk 0:02:43]}  Ne7 {[%clk 0:02:10]} 13. Nd2 {[%clk 0:02:40]}  f5 {[%clk 0:01:43]} 14. f3 {[%clk 0:02:39]}  fxe4 {[%clk 0:01:36]} 15. fxe4 {[%clk 0:02:37]}  Bf6 {[%clk 0:01:19]} 16. Qc2 {[%clk 0:02:34]}  Bg5 {[%clk 0:01:15]} 17. O-O-O {[%clk 0:02:30]}  h4 {[%clk 0:01:13]} 18. Be1 {[%clk 0:02:30]}  c6 {[%clk 0:01:06]} 19. Kb1 {[%clk 0:02:29]}  Bd7 {[%clk 0:00:41]} 20. Nf3 {[%clk 0:02:29]}  Rxf3 {[%clk 0:00:34]} 21. Bxf3 {[%clk 0:02:26]}  Nf7 {[%clk 0:00:29]} 22. Rf1 {[%clk 0:02:15]}  Rc8 {[%clk 0:00:25]} 23. Qe2 {[%clk 0:02:14]}  cxd5 {[%clk 0:00:23]} 24. cxd5 {[%clk 0:02:13]}  b5 {[%clk 0:00:24]} 25. Nxb5 {[%clk 0:02:02]}  Qb6 {[%clk 0:00:19]} 26. Nc3 {[%clk 0:02:01]}  Nh6 {[%clk 0:00:14]} 27. Ka1 {[%clk 0:01:57]}  a5 {[%clk 0:00:13]} 28. Bd2 {[%clk 0:01:57]}  Bxd2 {[%clk 0:00:10]} 29. Qxd2 {[%clk 0:01:57]}  Kg7 {[%clk 0:00:11]} 30. Qg5 {[%clk 0:01:55]}  Neg8 {[%clk 0:00:08]} 31. Qxh4 {[%clk 0:01:53]}  a4 {[%clk 0:00:08]} 32. a3 {[%clk 0:01:48]}  Rxc3 {[%clk 0:00:07]} 33. bxc3 {[%clk 0:01:48]}  Qb3 {[%clk 0:00:05]} 34. Qf2 {[%clk 0:01:48]}  Qxa3+ {[%clk 0:00:05]} 35. Qa2 {[%clk 0:01:47]}  Qxc3+ {[%clk 0:00:05]} 36. Qb2 {[%clk 0:01:48]}  Qe3 {[%clk 0:00:05]} 37. Rfe1 {[%clk 0:01:47]}  Qa7 {[%clk 0:00:02]} 38. Qa3 {[%clk 0:01:46]}  Qa5 {[%clk 0:00:01]} 39. Rc1 {[%clk 0:01:45]}  Bb5 {[%clk 0:00:01]} 40. Qxd6 {[%clk 0:01:42]}  Nf7 {[%clk 0:00:01]} 41. Qc7 {[%clk 0:01:40]}  Nf6 {[%clk 0:00:01]} 42. Qxa5 {[%clk 0:01:39]} 1-0


[Site "https://www.chess.com"]

[Event "Titled Tuesday Blitz March 29 Early 2022"]
[White "Skliarov, Viktor"]
[Black "Shuvalov, Evgenij"]
[WhiteFideId "14106736"]
[BlackFideId "4187237"]
[WhiteElo "2615"]
[BlackElo "2485"]
[Result "1/2-1/2"]
[Round "09"]
[TimeControl "180+1"]
[Date "2022.03.30"]
[WhiteClock "0:00:05"]
[BlackClock "0:00:20"]

1. e4 {[%clk 0:03:00]}  e6 {[%clk 0:02:59]} 2. d4 {[%clk 0:03:01]}  d5 {[%clk 0:03:00]} 3. e5 {[%clk 0:03:02]}  c5 {[%clk 0:03:00]} 4. c3 {[%clk 0:03:02]}  Nc6 {[%clk 0:03:00]} 5. Nf3 {[%clk 0:03:02]}  Qb6 {[%clk 0:03:01]} 6. a3 {[%clk 0:03:02]}  Bd7 {[%clk 0:03:00]} 7. b4 {[%clk 0:03:02]}  cxd4 {[%clk 0:03:00]} 8. cxd4 {[%clk 0:03:02]}  Rc8 {[%clk 0:03:00]} 9. Bb2 {[%clk 0:03:02]}  Nge7 {[%clk 0:02:59]} 10. Nc3 {[%clk 0:02:59]}  Na5 {[%clk 0:02:59]} 11. Na4 {[%clk 0:02:59]}  Qc6 {[%clk 0:02:58]} 12. Nc5 {[%clk 0:02:48]}  Nc4 {[%clk 0:02:58]} 13. Bc3 {[%clk 0:02:43]}  b6 {[%clk 0:02:56]} 14. Nxd7 {[%clk 0:02:42]}  Qxd7 {[%clk 0:02:57]} 15. Bd3 {[%clk 0:02:28]}  b5 {[%clk 0:02:51]} 16. O-O {[%clk 0:02:21]}  Nc6 {[%clk 0:02:50]} 17. Ng5 {[%clk 0:02:04]}  g6 {[%clk 0:02:03]} 18. h4 {[%clk 0:01:51]}  h6 {[%clk 0:02:02]} 19. Nh3 {[%clk 0:01:45]}  h5 {[%clk 0:01:45]} 20. Nf4 {[%clk 0:01:18]}  Ne7 {[%clk 0:01:37]} 21. a4 {[%clk 0:00:34]}  a6 {[%clk 0:01:28]} 22. axb5 {[%clk 0:00:34]}  axb5 {[%clk 0:01:29]} 23. Ra6 {[%clk 0:00:29]}  Bh6 {[%clk 0:01:15]} 24. Qf3 {[%clk 0:00:25]}  Nxe5 {[%clk 0:00:43]} 25. dxe5 {[%clk 0:00:22]}  Rxc3 {[%clk 0:00:43]} 26. Ra8+ {[%clk 0:00:18]}  Rc8 {[%clk 0:00:34]} 27. Rxc8+ {[%clk 0:00:13]}  Nxc8 {[%clk 0:00:35]} 28. Qe2 {[%clk 0:00:08]}  O-O {[%clk 0:00:26]} 29. Nxh5 {[%clk 0:00:04]}  gxh5 {[%clk 0:00:19]} 30. Qxh5 {[%clk 0:00:05]}  Kg7 {[%clk 0:00:19]} 31. Qg4+ {[%clk 0:00:06]}  Kh8 {[%clk 0:00:19]} 32. Qh5 {[%clk 0:00:06]}  Kg7 {[%clk 0:00:19]} 33. Qg4+ {[%clk 0:00:04]}  Kh8 {[%clk 0:00:19]} 34. Qh5 {[%clk 0:00:05]}  Kg7 {[%clk 0:00:20]} 1/2-1/2


[Site "https://www.chess.com"]

[Event "Titled Tuesday Blitz March 29 Early 2022"]
[White "Tasev, Dejan"]
[Black "Posthuma, Joshua"]
[WhiteFideId "936618"]
[BlackFideId "2096889"]
[WhiteElo "2253"]
[BlackElo "2176"]
[Result "1-0"]
[Round "09"]
[TimeControl "180+1"]
[Date "2022.03.29"]
[WhiteClock "0:00:17"]
[BlackClock "0:00:29"]

1. e4 {[%clk 0:03:00]}  c6 {[%clk 0:02:58]} 2. d4 {[%clk 0:03:00]}  d5 {[%clk 0:02:58]} 3. Nc3 {[%clk 0:03:00]}  dxe4 {[%clk 0:02:57]} 4. Nxe4 {[%clk 0:03:01]}  Nf6 {[%clk 0:02:58]} 5. Nxf6+ {[%clk 0:03:00]}  gxf6 {[%clk 0:02:57]} 6. Bc4 {[%clk 0:02:53]}  Bf5 {[%clk 0:02:57]} 7. Ne2 {[%clk 0:02:53]}  e6 {[%clk 0:02:56]} 8. Ng3 {[%clk 0:02:53]}  Bg6 {[%clk 0:02:56]} 9. h4 {[%clk 0:02:51]}  h5 {[%clk 0:02:56]} 10. c3 {[%clk 0:02:47]}  Bd6 {[%clk 0:02:56]} 11. Qf3 {[%clk 0:02:45]}  Nd7 {[%clk 0:02:50]} 12. Ne4 {[%clk 0:02:32]}  Bxe4 {[%clk 0:02:46]} 13. Qxe4 {[%clk 0:02:31]}  f5 {[%clk 0:02:46]} 14. Qf3 {[%clk 0:02:28]}  Qb6 {[%clk 0:02:40]} 15. Qe2 {[%clk 0:02:04]}  O-O-O {[%clk 0:02:25]} 16. Bg5 {[%clk 0:01:41]}  Rde8 {[%clk 0:02:25]} 17. O-O-O {[%clk 0:01:39]}  Qc7 {[%clk 0:02:02]} 18. g3 {[%clk 0:01:35]}  f4 {[%clk 0:01:54]} 19. Kb1 {[%clk 0:01:31]}  fxg3 {[%clk 0:01:48]} 20. fxg3 {[%clk 0:01:30]}  Bxg3 {[%clk 0:01:48]} 21. Rhf1 {[%clk 0:01:25]}  Nb6 {[%clk 0:01:48]} 22. Bb3 {[%clk 0:01:24]}  e5 {[%clk 0:01:36]} 23. Rxf7 {[%clk 0:01:19]}  Qd6 {[%clk 0:01:35]} 24. Qf3 {[%clk 0:01:11]}  e4 {[%clk 0:01:27]} 25. Qf5+ {[%clk 0:01:07]}  Kb8 {[%clk 0:01:27]} 26. c4 {[%clk 0:01:05]}  Qe6 {[%clk 0:01:17]} 27. Bf4+ {[%clk 0:01:02]}  Bxf4 {[%clk 0:01:15]} 28. Qxf4+ {[%clk 0:01:03]}  Ka8 {[%clk 0:01:15]} 29. Qc7 {[%clk 0:01:03]}  Qc8 {[%clk 0:01:15]} 30. Qxc8+ {[%clk 0:00:49]}  Nxc8 {[%clk 0:01:15]} 31. c5 {[%clk 0:00:49]}  Ne7 {[%clk 0:01:11]} 32. Rg1 {[%clk 0:00:39]}  e3 {[%clk 0:01:11]} 33. Bc4 {[%clk 0:00:34]}  Rhg8 {[%clk 0:01:00]} 34. Rxg8 {[%clk 0:00:34]}  Nxg8 {[%clk 0:01:00]} 35. Be2 {[%clk 0:00:31]}  Nh6 {[%clk 0:00:58]} 36. Rf6 {[%clk 0:00:29]}  Ng4 {[%clk 0:00:53]} 37. Rf4 {[%clk 0:00:28]}  a6 {[%clk 0:00:47]} 38. Kc2 {[%clk 0:00:28]}  Nf2 {[%clk 0:00:45]} 39. b4 {[%clk 0:00:23]}  Ne4 {[%clk 0:00:34]} 40. Bxh5 {[%clk 0:00:20]}  Ng3 {[%clk 0:00:34]} 41. Bxe8 {[%clk 0:00:17]}  e2 {[%clk 0:00:35]} 42. Kd2 {[%clk 0:00:18]}  a5 {[%clk 0:00:31]} 43. a3 {[%clk 0:00:18]}  axb4 {[%clk 0:00:31]} 44. axb4 {[%clk 0:00:18]}  Ka7 {[%clk 0:00:32]} 45. Rg4 {[%clk 0:00:19]}  Nf5 {[%clk 0:00:30]} 46. Kxe2 {[%clk 0:00:19]}  Ka6 {[%clk 0:00:30]} 47. Bd7 {[%clk 0:00:18]}  Ne7 {[%clk 0:00:29]} 48. Be6 {[%clk 0:00:17]}  Kb5 {[%clk 0:00:29]} 49. h5 {[%clk 0:00:18]}  Kxb4 {[%clk 0:00:29]} 50. h6 {[%clk 0:00:17]} 1-0


[Site "https://www.chess.com"]

[Event "Titled Tuesday Blitz March 29 Early 2022"]
[White "Todorovic, Bojan"]
[Black "Fajdetic, Hrvoje"]
[WhiteFideId "917087"]
[BlackFideId "14501945"]
[WhiteElo "2266"]
[BlackElo "2172"]
[Result "1-0"]
[Round "09"]
[TimeControl "180+1"]
[Date "2022.03.30"]
[WhiteClock "0:01:22"]
[BlackClock "0:01:04"]

1. d4 {[%clk 0:02:58]}  e6 {[%clk 0:02:57]} 2. c4 {[%clk 0:02:56]}  f5 {[%clk 0:02:57]} 3. g3 {[%clk 0:02:54]}  Nf6 {[%clk 0:02:57]} 4. Bg2 {[%clk 0:02:54]}  Be7 {[%clk 0:02:57]} 5. Nf3 {[%clk 0:02:53]}  O-O {[%clk 0:02:56]} 6. O-O {[%clk 0:02:52]}  d6 {[%clk 0:02:55]} 7. b3 {[%clk 0:02:50]}  Ne4 {[%clk 0:02:56]} 8. Bb2 {[%clk 0:02:47]}  Bf6 {[%clk 0:02:52]} 9. Nbd2 {[%clk 0:02:45]}  Nxd2 {[%clk 0:02:51]} 10. Qxd2 {[%clk 0:02:39]}  Qe8 {[%clk 0:02:49]} 11. c5 {[%clk 0:02:25]}  d5 {[%clk 0:02:29]} 12. b4 {[%clk 0:02:25]}  c6 {[%clk 0:02:27]} 13. a4 {[%clk 0:02:23]}  Nd7 {[%clk 0:02:24]} 14. b5 {[%clk 0:02:20]}  e5 {[%clk 0:02:24]} 15. Nxe5 {[%clk 0:02:05]}  Nxe5 {[%clk 0:02:25]} 16. dxe5 {[%clk 0:02:05]}  Bxe5 {[%clk 0:02:26]} 17. Bxe5 {[%clk 0:01:58]}  Qxe5 {[%clk 0:02:27]} 18. e3 {[%clk 0:01:57]}  a6 {[%clk 0:02:12]} 19. bxc6 {[%clk 0:01:53]}  bxc6 {[%clk 0:02:13]} 20. Rab1 {[%clk 0:01:52]}  Rf7 {[%clk 0:02:05]} 21. Rb6 {[%clk 0:01:49]}  Rc7 {[%clk 0:02:01]} 22. Qd4 {[%clk 0:01:44]}  Qxd4 {[%clk 0:01:47]} 23. exd4 {[%clk 0:01:43]}  Kf7 {[%clk 0:01:36]} 24. Rxc6 {[%clk 0:01:37]}  Rd7 {[%clk 0:01:11]} 25. Rb1 {[%clk 0:01:27]}  Ke7 {[%clk 0:01:04]} 26. Re1+ {[%clk 0:01:23]}  Kf7 {[%clk 0:01:04]} 27. Re5 {[%clk 0:01:22]} 1-0


[Site "https://www.chess.com"]

[Event "Titled Tuesday Blitz March 29 Early 2022"]
[White "Vokhidov, Shamsiddin"]
[Black "Mirzoev, Azer"]
[WhiteFideId "14204223"]
[BlackFideId "13400304"]
[WhiteElo "2611"]
[BlackElo "2525"]
[Result "1-0"]
[Round "09"]
[TimeControl "180+1"]
[Date "2022.03.29"]
[WhiteClock "0:00:13"]
[BlackClock "0:00:05"]

1. e4 {[%clk 0:03:00]}  e5 {[%clk 0:02:59]} 2. Nf3 {[%clk 0:03:01]}  Nc6 {[%clk 0:03:00]} 3. Bb5 {[%clk 0:03:00]}  a6 {[%clk 0:02:59]} 4. Ba4 {[%clk 0:03:01]}  Nge7 {[%clk 0:02:58]} 5. O-O {[%clk 0:02:58]}  d6 {[%clk 0:02:59]} 6. d4 {[%clk 0:02:54]}  Bd7 {[%clk 0:02:59]} 7. Bb3 {[%clk 0:02:50]}  h6 {[%clk 0:02:55]} 8. Nc3 {[%clk 0:02:48]}  Ng6 {[%clk 0:02:43]} 9. h3 {[%clk 0:02:39]}  Be7 {[%clk 0:02:43]} 10. Nd5 {[%clk 0:02:36]}  O-O {[%clk 0:02:37]} 11. c3 {[%clk 0:02:36]}  Re8 {[%clk 0:02:36]} 12. Nxe7+ {[%clk 0:02:36]}  Qxe7 {[%clk 0:02:29]} 13. Re1 {[%clk 0:02:34]}  Rad8 {[%clk 0:02:15]} 14. Bc2 {[%clk 0:02:29]}  Qf6 {[%clk 0:02:10]} 15. Be3 {[%clk 0:02:28]}  Nf4 {[%clk 0:01:55]} 16. Nh2 {[%clk 0:02:27]}  Ne7 {[%clk 0:01:49]} 17. Ng4 {[%clk 0:02:26]}  Qg5 {[%clk 0:01:41]} 18. Bxf4 {[%clk 0:01:51]}  Qxf4 {[%clk 0:01:39]} 19. Ne3 {[%clk 0:01:45]}  Bc6 {[%clk 0:01:34]} 20. g3 {[%clk 0:01:39]}  Qg5 {[%clk 0:01:28]} 21. h4 {[%clk 0:01:39]}  Qg6 {[%clk 0:01:27]} 22. Qf3 {[%clk 0:01:32]}  Nc8 {[%clk 0:01:16]} 23. Rad1 {[%clk 0:01:30]}  Nb6 {[%clk 0:01:01]} 24. b3 {[%clk 0:01:23]}  exd4 {[%clk 0:00:55]} 25. Rxd4 {[%clk 0:01:23]}  Nd7 {[%clk 0:00:54]} 26. Qf4 {[%clk 0:01:12]}  Ne5 {[%clk 0:00:42]} 27. Nf5 {[%clk 0:01:11]}  Qf6 {[%clk 0:00:42]} 28. Rdd1 {[%clk 0:00:54]}  h5 {[%clk 0:00:33]} 29. Kg2 {[%clk 0:00:49]}  g6 {[%clk 0:00:32]} 30. Nd4 {[%clk 0:00:48]}  Kg7 {[%clk 0:00:20]} 31. Qxf6+ {[%clk 0:00:43]}  Kxf6 {[%clk 0:00:20]} 32. f4 {[%clk 0:00:44]}  Ng4 {[%clk 0:00:20]} 33. Nxc6 {[%clk 0:00:44]}  bxc6 {[%clk 0:00:20]} 34. Kf3 {[%clk 0:00:42]}  Rb8 {[%clk 0:00:19]} 35. Rd4 {[%clk 0:00:41]}  c5 {[%clk 0:00:19]} 36. Ra4 {[%clk 0:00:40]}  Rb6 {[%clk 0:00:19]} 37. Bd3 {[%clk 0:00:39]}  Ra8 {[%clk 0:00:18]} 38. Ra5 {[%clk 0:00:40]}  Ke7 {[%clk 0:00:18]} 39. e5 {[%clk 0:00:40]}  Kd7 {[%clk 0:00:14]} 40. Bc4 {[%clk 0:00:39]}  Nh6 {[%clk 0:00:13]} 41. Rd1 {[%clk 0:00:33]}  Ke7 {[%clk 0:00:11]} 42. Bd3 {[%clk 0:00:28]}  Nf5 {[%clk 0:00:08]} 43. Re1 {[%clk 0:00:22]}  Kf8 {[%clk 0:00:08]} 44. exd6 {[%clk 0:00:19]}  cxd6 {[%clk 0:00:08]} 45. Bxf5 {[%clk 0:00:15]}  gxf5 {[%clk 0:00:08]} 46. Rd1 {[%clk 0:00:15]}  Re8 {[%clk 0:00:08]} 47. Rd5 {[%clk 0:00:15]}  Re1 {[%clk 0:00:08]} 48. Rxf5 {[%clk 0:00:15]}  Rc1 {[%clk 0:00:08]} 49. c4 {[%clk 0:00:15]}  Rc3+ {[%clk 0:00:08]} 50. Kg2 {[%clk 0:00:15]}  Rc2+ {[%clk 0:00:08]} 51. Kh3 {[%clk 0:00:16]}  Rc1 {[%clk 0:00:07]} 52. Rxh5 {[%clk 0:00:16]}  Rb7 {[%clk 0:00:08]} 53. Rxa6 {[%clk 0:00:16]}  Kg7 {[%clk 0:00:07]} 54. Rxd6 {[%clk 0:00:15]}  Ra7 {[%clk 0:00:07]} 55. Rg5+ {[%clk 0:00:15]}  Kf8 {[%clk 0:00:06]} 56. a4 {[%clk 0:00:15]}  Rc3 {[%clk 0:00:06]} 57. h5 {[%clk 0:00:14]}  Rxb3 {[%clk 0:00:06]} 58. h6 {[%clk 0:00:14]}  Ke7 {[%clk 0:00:06]} 59. h7 {[%clk 0:00:13]}  Ra8 {[%clk 0:00:05]} 60. Rg8 {[%clk 0:00:13]}  Rb1 {[%clk 0:00:05]} 61. Rxa8 {[%clk 0:00:13]} 1-0


[Site "https://www.chess.com"]

[Event "Titled Tuesday Blitz March 29 Early 2022"]
[White "Vovk, Orest"]
[Black "Ambartsumova, Karina"]
[WhiteFideId "14113490"]
[BlackFideId "4166299"]
[WhiteElo "2453"]
[BlackElo "2598"]
[Result "0-1"]
[Round "09"]
[TimeControl "180+1"]
[Date "2022.03.30"]
[WhiteClock "0:00:06"]
[BlackClock "0:00:11"]

1. h4 {[%clk 0:03:00]}  e5 {[%clk 0:02:57]} 2. h5 {[%clk 0:02:58]}  h6 {[%clk 0:02:57]} 3. d4 {[%clk 0:02:42]}  exd4 {[%clk 0:02:53]} 4. Qxd4 {[%clk 0:02:28]}  Nf6 {[%clk 0:02:51]} 5. Qa4 {[%clk 0:02:27]}  Nc6 {[%clk 0:02:49]} 6. g4 {[%clk 0:02:25]}  d5 {[%clk 0:02:40]} 7. g5 {[%clk 0:02:24]}  Ne4 {[%clk 0:02:27]} 8. g6 {[%clk 0:02:07]}  Be6 {[%clk 0:02:19]} 9. gxf7+ {[%clk 0:02:03]}  Bxf7 {[%clk 0:02:19]} 10. Nd2 {[%clk 0:01:46]}  Nc5 {[%clk 0:02:19]} 11. Qg4 {[%clk 0:01:36]}  Qf6 {[%clk 0:02:19]} 12. Ngf3 {[%clk 0:01:26]}  Be6 {[%clk 0:02:04]} 13. Qh4 {[%clk 0:01:20]}  Qf7 {[%clk 0:01:53]} 14. Nb3 {[%clk 0:00:56]}  Be7 {[%clk 0:01:48]} 15. Qf4 {[%clk 0:00:56]}  O-O-O {[%clk 0:01:30]} 16. Bh3 {[%clk 0:00:35]}  Kb8 {[%clk 0:01:11]} 17. Qxf7 {[%clk 0:00:31]}  Bxf7 {[%clk 0:01:12]} 18. Nxc5 {[%clk 0:00:27]}  Bxc5 {[%clk 0:01:12]} 19. Bf5 {[%clk 0:00:27]}  Rhe8 {[%clk 0:01:06]} 20. Bf4 {[%clk 0:00:23]}  d4 {[%clk 0:00:56]} 21. a3 {[%clk 0:00:16]}  Rd5 {[%clk 0:00:46]} 22. Bg6 {[%clk 0:00:11]}  Rf8 {[%clk 0:00:43]} 23. Bxf7 {[%clk 0:00:10]}  Rxf7 {[%clk 0:00:44]} 24. Bg3 {[%clk 0:00:09]}  Rff5 {[%clk 0:00:44]} 25. O-O-O {[%clk 0:00:08]}  Rxh5 {[%clk 0:00:41]} 26. Rhg1 {[%clk 0:00:08]}  Rhf5 {[%clk 0:00:34]} 27. Nd2 {[%clk 0:00:07]}  b5 {[%clk 0:00:27]} 28. Nb3 {[%clk 0:00:04]}  Bf8 {[%clk 0:00:21]} 29. f3 {[%clk 0:00:04]}  g5 {[%clk 0:00:18]} 30. Bf2 {[%clk 0:00:04]}  Bg7 {[%clk 0:00:17]} 31. Rh1 {[%clk 0:00:03]}  Kb7 {[%clk 0:00:17]} 32. Rhg1 {[%clk 0:00:04]}  Rf7 {[%clk 0:00:15]} 33. Rg4 {[%clk 0:00:04]}  Rfd7 {[%clk 0:00:15]} 34. Re4 {[%clk 0:00:04]}  a5 {[%clk 0:00:14]} 35. Re6 {[%clk 0:00:04]}  a4 {[%clk 0:00:14]} 36. Nd2 {[%clk 0:00:04]}  R5d6 {[%clk 0:00:14]} 37. Re8 {[%clk 0:00:04]}  Rd8 {[%clk 0:00:14]} 38. Rxd8 {[%clk 0:00:03]}  Rxd8 {[%clk 0:00:15]} 39. Ne4 {[%clk 0:00:04]}  Kb6 {[%clk 0:00:16]} 40. Bg3 {[%clk 0:00:04]}  Be5 {[%clk 0:00:14]} 41. Bxe5 {[%clk 0:00:04]}  Nxe5 {[%clk 0:00:15]} 42. Rh1 {[%clk 0:00:04]}  Nf7 {[%clk 0:00:15]} 43. Ng3 {[%clk 0:00:02]}  Rd6 {[%clk 0:00:14]} 44. Kd2 {[%clk 0:00:03]}  c5 {[%clk 0:00:13]} 45. Nf5 {[%clk 0:00:03]}  Rf6 {[%clk 0:00:14]} 46. Ng3 {[%clk 0:00:04]}  Kc6 {[%clk 0:00:14]} 47. Ne4 {[%clk 0:00:05]}  Re6 {[%clk 0:00:13]} 48. Ng3 {[%clk 0:00:05]}  Kd5 {[%clk 0:00:14]} 49. Nf5 {[%clk 0:00:05]}  c4 {[%clk 0:00:13]} 50. Ng7 {[%clk 0:00:05]}  Rg6 {[%clk 0:00:11]} 51. Nf5 {[%clk 0:00:05]}  Rf6 {[%clk 0:00:10]} 52. Ng3 {[%clk 0:00:04]}  Nd6 {[%clk 0:00:10]} 53. Ne4 {[%clk 0:00:04]}  Nxe4+ {[%clk 0:00:10]} 54. fxe4+ {[%clk 0:00:05]}  Kxe4 {[%clk 0:00:11]} 55. c3 {[%clk 0:00:06]}  dxc3+ {[%clk 0:00:11]} 56. bxc3 {[%clk 0:00:05]}  g4 {[%clk 0:00:10]} 57. Rh5 {[%clk 0:00:05]}  g3 {[%clk 0:00:09]} 58. Rh3 {[%clk 0:00:05]}  Rg6 {[%clk 0:00:09]} 59. Rh4+ {[%clk 0:00:06]}  Kf5 {[%clk 0:00:09]} 60. Rh1 {[%clk 0:00:06]}  g2 {[%clk 0:00:09]} 61. Rg1 {[%clk 0:00:06]}  h5 {[%clk 0:00:10]} 62. Ke3 {[%clk 0:00:06]}  h4 {[%clk 0:00:10]} 63. Kf2 {[%clk 0:00:07]}  h3 {[%clk 0:00:10]} 64. Re1 {[%clk 0:00:05]}  h2 {[%clk 0:00:10]} 65. e4+ {[%clk 0:00:06]}  Ke5 {[%clk 0:00:11]} 0-1


[Site "https://www.chess.com"]